fUST/lending_fUST_20250109
["ID","MTS","AMOUNT","RATE_DAILY","PERIOD"]
[348275149,1736430644118,-542.98,0.00023282,2]
[348275152,1736430644127,-605.13,0.00023282,3]
[348275155,1736430644138,-588.12,0.00023282,3]
[348275158,1736430644148,-2296.96,0.00023283,3]
[348275161,1736430644157,-850.99,0.00023284,3]
[348275163,1736430644166,-151.0,0.00023289,2]
[348275165,1736430644175,-151.0,0.00023289,7]
[348275167,1736430644184,-276.440407,0.00023289,7]
[348275169,1736430644193,-151.0,0.00023289,7]
[348275171,1736430644203,-151.0,0.00023289,7]
[348275173,1736430644212,-151.0,0.00023289,7]
[348275175,1736430644221,-151.0,0.00023289,7]
[348275177,1736430644232,-151.0,0.00023289,7]
[348275179,1736430644241,-151.0,0.00023289,7]
[348275181,1736430644251,-151.0,0.00023289,7]
[348275183,1736430644260,-151.0,0.00023289,7]
[348275186,1736430644269,-151.0,0.00023289,7]
[348275187,1736430644278,-151.0,0.00023289,7]
[348275189,1736430644288,-151.0,0.00023289,7]
[348275191,1736430644297,-151.0,0.00023289,7]
[348275193,1736430644307,-271.227699,0.00023289,7]
[348275195,1736430644316,-151.0,0.00023289,7]
[348275196,1736430644325,-151.0,0.00023289,7]
[348275197,1736430644334,-151.0,0.00023289,7]
[348275198,1736430644343,-151.0,0.00023289,7]
[348275199,1736430644352,-151.0,0.00023289,7]
[348275200,1736430644362,-151.0,0.00023289,7]
[348275202,1736430644371,-151.0,0.00023289,7]
[348275204,1736430644380,-151.0,0.00023289,7]
[348275206,1736430644389,-151.0,0.00023289,7]
[348275208,1736430644399,-151.0,0.00023289,7]
[348275210,1736430644408,-151.0,0.00023291,7]
[348275213,1736430644418,-151.0,0.00023293,7]
[348275215,1736430644428,-52144.89035353,0.00023293,5]
[348275217,1736430644438,-10425.92629493,0.00023293,5]
[348275219,1736430644447,-202717.12710365,0.00023294,10]
[348275226,1736430644504,-408511.18831021,0.00023294,10]
[348275228,1736430644521,-447.72129026,0.00023294,10]
[348275241,1736430644639,-500.0,0.00019973,2]
[348275243,1736430644649,-500.0,0.00019994,3]
[348275245,1736430644658,-265.19047943,0.00020521,2]
[348275247,1736430644667,-121400.07963559,0.00023294,10]
[348275249,1736430644679,-30447.78,0.00023294,10]
[348275252,1736430644690,-9228.24966759,0.00023294,10]
[348275254,1736430644702,-537.53933581,0.00023294,10]
[348275256,1736430644712,-48844.12204809,0.00023294,10]
[348275258,1736430644721,-212560.81944041,0.00023294,10]
[348275260,1736430644733,-1550.94231775,0.00023294,10]
[348275265,1736430644773,-213.77741173,0.00019995,2]
[348275267,1736430644782,-150.2,0.00023271,10]
[348275269,1736430644791,-150.2,0.00023271,10]
[348275271,1736430644801,-1435.82258377,0.00023294,10]
[348275273,1736430644811,-446.19196676,0.00023294,10]
[348275275,1736430644822,-2905.32648699,0.00023294,10]
[348275479,1736430646737,-500.0,0.00019993,2]
[348275481,1736430646746,-180.36960784,0.00019993,2]
[348275483,1736430646755,-61.75439216,0.00019993,2]
[348275485,1736430646767,-455.82912422,0.00019993,2]
[348275487,1736430646777,-6.67087578,0.00019994,2]
[348275489,1736430646788,-493.32912422,0.00019994,2]
[348275491,1736430646798,-500.0,0.00020268,2]
[348275493,1736430646808,-500.0,0.00020542,2]
[348275495,1736430646817,-500.0,0.00020816,2]
[348275497,1736430646827,-500.0,0.0002109,2]
[348275499,1736430646836,-214.9,0.00021364,2]
[348275501,1736430646845,-150.44863848,0.00023271,10]
[348275503,1736430646854,-150.2,0.00023271,10]
[348275505,1736430646864,-150.2,0.00023271,2]
[348275507,1736430646873,-153.0,0.00023288,2]
[348275509,1736430646882,-153.0,0.00023288,2]
[348275511,1736430646891,-153.0,0.00023288,2]
[348275513,1736430646901,-23045.9211123,0.00023294,10]
[348275515,1736430646912,-18477.60000001,0.00023294,10]
[348275517,1736430646923,-923.8,0.00023294,10]
[348275519,1736430646934,-8488.587205,0.00023294,10]
[348278015,1736431429304,400.0,0.00013973,2]
[348278023,1736431536141,-180.862864,0.00018992,2]
[348278024,1736431536161,-2339.97191443,0.00019046,2]
[348278025,1736431536182,-6624.3617996,0.00019146,2]
[348278026,1736431536208,-500.0,0.00019274,2]
[348278027,1736431536230,-196.51398406,0.00019794,2]
[348278028,1736431536251,-176.85645375,0.00019887,2]
[348278029,1736431536272,-151.0,0.00019978,2]
[348278030,1736431536293,-300.0,0.00019984,2]
[348278031,1736431536314,-39359.0,0.00019984,2]
[348278032,1736431536340,-196.71,0.00019985,3]
[348278033,1736431536361,-324.025,0.00019987,2]
[348278034,1736431536383,-500.0,0.00019987,3]
[348278035,1736431536410,-500.0,0.00019987,3]
[348278036,1736431536432,-500.0,0.00019987,3]
[348278037,1736431536457,-284.1195,0.00019987,3]
[348278038,1736431536480,-649.29490553,0.00019987,3]
[348278039,1736431536505,-500.0,0.00019987,2]
[348278040,1736431536531,-500.0,0.00019987,3]
[348278041,1736431536556,-231.67979924,0.00019987,3]
[348278042,1736431536580,-513.09,0.00019987,3]
[348278043,1736431536604,-500.0,0.00019987,3]
[348278044,1736431536626,-272.66459683,0.00019987,3]
[348278045,1736431536650,-500.0,0.00019987,3]
[348278046,1736431536674,-616.21,0.00019987,3]
[348278047,1736431536696,-500.0,0.00019987,3]
[348278048,1736431536722,-500.0,0.00019991,3]
[348278049,1736431536746,-500.0,0.00019991,3]
[348278050,1736431536770,-500.0,0.00019991,3]
[348278051,1736431536792,-562.36,0.00019991,3]
[348278052,1736431536815,-500.0,0.00019991,3]
[348278053,1736431536838,-500.0,0.00019991,3]
[348278054,1736431536864,-1751.25,0.00019991,3]
[348278055,1736431536887,-500.0,0.00019991,3]
[348278056,1736431536909,-190.05170086,0.00019993,3]
[348278057,1736431536930,-500.0,0.00019993,3]
[348278058,1736431536951,-497.77961733,0.00019993,3]
[348278059,1736431536976,-515.20949506,0.00019993,3]
[348278060,1736431536998,-582.23,0.00019993,3]
[348278061,1736431537020,-500.0,0.00019993,3]
[348278062,1736431537043,-500.0,0.00019993,3]
[348278063,1736431537065,-500.0,0.00019993,3]
[348278064,1736431537087,-500.0,0.00019993,3]
[348278065,1736431537108,-401.6350625,0.00019993,3]
[348278066,1736431537131,-500.0,0.00019993,3]
[348278067,1736431537153,-500.0,0.00019993,3]
[348278068,1736431537176,-500.0,0.00019993,3]
[348278069,1736431537197,-211.30444048,0.00019993,3]
[348278070,1736431537222,-500.0,0.00019993,3]
[348278071,1736431537244,-500.0,0.00019993,3]
[348278072,1736431537266,-500.0,0.00019993,3]
[348278073,1736431537287,-500.0,0.00019994,3]
[348278074,1736431537307,-500.53091454,0.00019994,3]
[348278075,1736431537328,-500.0,0.00019994,3]
[348278076,1736431537351,-500.0,0.00019994,3]
[348278077,1736431537372,-500.0,0.00019994,3]
[348278078,1736431537396,-500.0,0.00019994,3]
[348278079,1736431537420,-500.0,0.00019994,3]
[348278080,1736431537443,-500.0,0.00019994,3]
[348278081,1736431537472,-500.0,0.00019994,3]
[348278082,1736431537495,-500.0,0.00019994,3]
[348278083,1736431537517,-500.0,0.00019994,3]
[348278084,1736431537540,-500.0,0.00019994,3]
[348278085,1736431537562,-500.0,0.00019994,3]
[348278086,1736431537585,-500.0,0.00019994,3]
[348278087,1736431537607,-500.0,0.00019994,3]
[348278088,1736431537629,-500.59922735,0.00019994,3]
[348278089,1736431537651,-500.0,0.00019994,3]
[348278090,1736431537672,-500.0,0.00019994,3]
[348278091,1736431537693,-500.0,0.00019994,3]
[348278092,1736431537720,-500.0,0.00019994,3]
[348278093,1736431537742,-500.58044124,0.00019994,3]
[348278094,1736431537764,-248.50089174,0.00019994,3]
[348278095,1736431537786,-500.0,0.00019994,3]
[348278096,1736431537807,-266.55256212,0.00019994,3]
[348278097,1736431537830,-500.0,0.00019994,3]
[348278098,1736431537851,-500.0,0.00019994,3]
[348278099,1736431537873,-500.0,0.00019994,3]
[348278100,1736431537896,-500.0,0.00019994,3]
[348278101,1736431537917,-500.0,0.00019995,3]
[348278102,1736431537939,-589.0941371,0.00019995,3]
[348278103,1736431537964,-500.0,0.00019995,3]
[348278104,1736431537984,-504.70337052,0.00019995,3]
[348278105,1736431538004,-500.0,0.00019995,3]
[348278106,1736431538027,-500.0,0.00019995,3]
[348278107,1736431538047,-500.0,0.00019995,3]
[348278108,1736431538067,-500.0,0.00019995,3]
[348278109,1736431538089,-500.0,0.00019995,3]
[348278110,1736431538112,-500.0,0.00019995,3]
[348278111,1736431538137,-500.0,0.00019995,3]
[348278112,1736431538158,-500.0,0.00019995,3]
[348278113,1736431538179,-485.59837215,0.00019995,3]
[348278114,1736431538201,-583.9846994,0.00019995,3]
[348278115,1736431538230,-500.0,0.00019995,3]
[348278116,1736431538253,-500.0,0.00019995,3]
[348278117,1736431538277,-317.10927451,0.00019995,3]
[348278118,1736431538300,-500.0,0.00019995,3]
[348278119,1736431538327,-959.6,0.00019996,3]
[348278120,1736431538356,-959.6,0.00019996,3]
[348278121,1736431538382,-1292.31,0.00019996,3]
[348278122,1736431538406,-4193.0,0.0002,2]
[348278123,1736431538428,-151.53511484,0.0002,2]
[348278124,1736431538452,-500.0,0.00020261,3]
[348278125,1736431538480,-500.0,0.00020261,2]
[348278126,1736431538506,-500.0,0.00020261,3]
[348278127,1736431538530,-511.72,0.00020265,3]
[348278128,1736431538554,-1751.25,0.00020265,3]
[348278129,1736431538576,-500.0,0.00020267,3]
[348278130,1736431538599,-431.468,0.00020267,3]
[348278131,1736431538621,-500.0,0.00020267,3]
[348278132,1736431538642,-501.20264461,0.00020268,3]
[348278133,1736431538746,-500.0,0.00020268,3]
[348278134,1736431538768,-500.0,0.00020268,3]
[348278135,1736431538789,-500.0,0.00020268,3]
[348278136,1736431538813,-500.0,0.00020269,3]
[348278137,1736431538836,-500.0,0.00020269,3]
[348278138,1736431538858,-511.18957035,0.00020269,3]
[348278139,1736431538879,-151.0,0.0002027,2]
[348278140,1736431538901,-151.0,0.0002027,2]
[348278141,1736431538924,-959.6,0.0002027,3]
[348278142,1736431538948,-959.6,0.0002027,3]
[348278143,1736431538975,-1292.31,0.0002027,3]
[348278144,1736431538996,-176.85645368,0.00020358,2]
[348278145,1736431539017,-400.0,0.00020447,2]
[348278146,1736431539038,-166.1,0.00020526,2]
[348278147,1736431539061,-204.0,0.00020535,3]
[348278148,1736431539083,-500.0,0.00020535,2]
[348278149,1736431539108,-500.0,0.00020535,3]
[348278150,1736431539131,-1751.25,0.00020539,3]
[348278151,1736431539152,-499.0,0.00020539,2]
[348278152,1736431539173,-268.11,0.00020541,3]
[348278153,1736431539196,-496.40503309,0.00020541,3]
[348278154,1736431539220,-500.0,0.00020542,3]
[348278155,1736431539241,-500.0,0.00020542,3]
[348278156,1736431539262,-151.0,0.00020543,2]
[348278157,1736431539286,-500.0,0.00020543,3]
[348278158,1736431539310,-500.0,0.00020543,3]
[348278159,1736431539336,-959.6,0.00020544,3]
[348278160,1736431539361,-959.6,0.00020544,3]
[348278161,1736431539387,-1292.31,0.00020544,3]
[348278162,1736431539409,-500.0,0.00020582,2]
[348278163,1736431539433,-185.43329444,0.00020713,2]
[348278164,1736431539457,-500.0,0.00020809,2]
[348278165,1736431539482,-500.0,0.00020809,3]
[348278166,1736431539509,-1751.25,0.00020813,3]
[348278167,1736431539532,-500.0,0.00020816,3]
[348278168,1736431539554,-500.0,0.00020816,3]
[348278169,1736431539578,-500.0,0.00020817,3]
[348278170,1736431539601,-500.0,0.00020817,3]
[348278171,1736431539624,-959.6,0.00020818,3]
[348278172,1736431539647,-959.6,0.00020818,3]
[348278173,1736431539671,-1292.31,0.00020818,3]
[348278174,1736431539693,-176.85645368,0.0002083,2]
[348278175,1736431539718,-232.691,0.00021074,2]
[348278176,1736431539741,-500.0,0.00021083,2]
[348278177,1736431539765,-500.0,0.00021083,3]
[348278178,1736431539788,-1751.25,0.00021087,3]
[348278179,1736431539809,-500.0,0.0002109,3]
[348278180,1736431539830,-500.0,0.0002109,3]
[348278181,1736431539853,-500.0,0.00021091,3]
[348278182,1736431539876,-500.0,0.00021091,3]
[348278183,1736431539900,-959.6,0.00021092,3]
[348278184,1736431539923,-959.6,0.00021092,3]
[348278185,1736431539945,-1292.31,0.00021092,3]
[348278186,1736431539972,-464.44837567,0.0002113,2]
[348278187,1736431539993,-513.52240469,0.00021194,2]
[348278188,1736431540014,-3000.0,0.000213,2]
[348278189,1736431540036,-176.85645368,0.00021301,2]
[348278190,1736431540056,-151.0,0.00021309,2]
[348278191,1736431540077,-151.0,0.00021309,2]
[348278192,1736431540097,-3000.0,0.0002131,2]
[348278193,1736431540118,-1888.28789893,0.0002132,2]
[348278202,1736431550085,-200.23987229,0.00020582,2]
[348278203,1736431550107,-1111.71210107,0.0002132,2]
[348278204,1736431550129,-3000.0,0.0002133,2]
[348278205,1736431550150,-3000.0,0.0002134,2]
[348278206,1736431550172,-3000.0,0.0002135,2]
[348278207,1736431550194,-500.0,0.00021357,2]
[348278208,1736431550219,-500.0,0.00021357,3]
[348278209,1736431550239,-169.34641181,0.00021359,2]
[348278210,1736431550259,-607.98956019,0.00021359,2]
[348278211,1736431550279,-214.8837635,0.00021359,2]
[348278212,1736431550300,-3000.0,0.0002136,2]
[348278213,1736431550322,-1751.25,0.00021361,3]
[348278214,1736431550347,-500.0,0.00021364,3]
[348278215,1736431550367,-500.0,0.00021364,3]
[348278216,1736431550390,-500.0,0.00021365,3]
[348278217,1736431550414,-500.0,0.00021365,3]
[348278218,1736431550440,-959.6,0.00021366,3]
[348278219,1736431550469,-959.6,0.00021366,3]
[348278220,1736431550495,-1292.31,0.00021366,3]
[348278221,1736431550515,-3000.0,0.0002137,2]
[348278222,1736431550536,-3000.0,0.0002138,2]
[348278223,1736431550556,-3000.0,0.0002139,2]
[348278224,1736431550576,-3000.0,0.000214,2]
[348278225,1736431550596,-3000.0,0.0002141,2]
[348278226,1736431550615,-3000.0,0.0002142,2]
[348278227,1736431550634,-3000.0,0.0002143,2]
[348278228,1736431550653,-3000.0,0.0002144,2]
[348278229,1736431550673,-3000.0,0.0002145,2]
[348278230,1736431550693,-3000.0,0.0002146,2]
[348278231,1736431550712,-3000.0,0.0002147,2]
[348278232,1736431550734,-3000.0,0.0002148,2]
[348278233,1736431550753,-500.0,0.00021489,2]
[348278234,1736431550773,-3000.0,0.0002149,2]
[348278235,1736431550793,-3000.0,0.000215,2]
[348278236,1736431550895,-3000.0,0.0002151,2]
[348278237,1736431550916,-3000.0,0.0002152,2]
[348278238,1736431550936,-3000.0,0.0002153,2]
[348278239,1736431550956,-3000.0,0.0002154,2]
[348278240,1736431550978,-3000.0,0.0002155,2]
[348278241,1736431551000,-3000.0,0.0002156,2]
[348278242,1736431551021,-3714.535335,0.0002157,2]
[348278243,1736431551041,-4193.0,0.000216,4]
[348278244,1736431551063,-257.94373211,0.00021631,2]
[348278245,1736431551087,-500.0,0.00021631,3]
[348278246,1736431551110,-1751.25,0.00021635,3]
[348278247,1736431551129,-500.0,0.00021638,3]
[348278248,1736431551152,-500.0,0.00021639,3]
[348278249,1736431551174,-500.0,0.00021639,3]
[348278250,1736431551198,-959.6,0.0002164,3]
[348278251,1736431551223,-959.6,0.0002164,3]
[348278252,1736431551244,-1292.31,0.0002164,3]
[348278253,1736431551265,-420.0,0.00021761,2]
[348278254,1736431551286,-176.85645368,0.00021773,2]
[348278255,1736431551309,-500.0,0.00021905,3]
[348278256,1736431551334,-1751.25,0.00021909,3]
[348278257,1736431551359,-151.0,0.00021912,2]
[348278258,1736431551384,-500.0,0.00021913,3]
[348278259,1736431551411,-500.0,0.00021913,3]
[348278260,1736431551436,-959.6,0.00021914,3]
[348278261,1736431551460,-1292.31,0.00021914,3]
[348278262,1736431551483,-185.43329444,0.0002195,2]
[348278263,1736431551504,-394.0,0.00021994,2]
[348278264,1736431551526,-151.0,0.00022,7]
[348278265,1736431551547,-151.0,0.00022,7]
[348278266,1736431551568,-151.0,0.00022,7]
[348278267,1736431551588,-602.017,0.0002213,2]
[348278268,1736431551612,-500.0,0.00022179,3]
[348278269,1736431551635,-1751.25,0.00022183,3]
[348278270,1736431551657,-500.0,0.00022187,3]
[348278271,1736431551680,-500.0,0.00022187,3]
[348278272,1736431551703,-1292.31,0.00022188,3]
[348278273,1736431551726,-151.0,0.000222,10]
[348278274,1736431551746,-176.85645368,0.00022244,2]
[348278275,1736431551766,-151.0,0.000224,7]
[348278276,1736431551790,-500.0,0.00022453,3]
[348278277,1736431551812,-1751.25,0.00022457,3]
[348278278,1736431551836,-500.0,0.00022461,3]
[348278279,1736431551858,-500.0,0.00022461,3]
[348278280,1736431551881,-1292.31,0.00022462,3]
[348278281,1736431551902,-151.0,0.000225,9]
[348278282,1736431551923,-151.0,0.000227,9]
[348278283,1736431551945,-176.85645368,0.00022716,2]
[348278284,1736431551969,-500.0,0.00022727,3]
[348278285,1736431551992,-1751.25,0.00022731,3]
[348278286,1736431552015,-500.0,0.00022735,3]
[348278287,1736431552039,-1292.31,0.00022736,3]
[348278288,1736431552059,-267.79,0.000228,2]
[348278289,1736431552081,-151.0,0.000229,10]
[348278290,1736431552101,-257.917,0.0002292,2]
[348278291,1736431552120,-535.0,0.0002292,2]
[348278292,1736431552140,-2076.0,0.0002292,2]
[348278293,1736431552160,-2317.0,0.0002292,2]
[348278294,1736431552180,-3863.48216854,0.00023,2]
[348278295,1736431552203,-500.0,0.00023001,3]
[348278296,1736431552227,-1751.25,0.00023005,3]
[348278297,1736431552252,-1292.31,0.0002301,3]
[348278298,1736431552272,-168.0,0.00023053,2]
[348278299,1736431552293,-284.5977115,0.00023056,2]
[348278300,1736431552313,-168.0,0.00023074,2]
[348278301,1736431552334,-171.4,0.00023074,2]
[348278302,1736431552359,-151.0,0.000231,6]
[348278303,1736431552378,-10651.72567472,0.00023128,2]
[348278304,1736431552401,-263.0,0.0002315,10]
[348278305,1736431552423,-151.0,0.00023179,7]
[348278306,1736431552447,-151.0,0.00023179,7]
[348278307,1736431552471,-9935.84076103,0.00023187,2]
[348278308,1736431552493,-176.85645368,0.00023187,2]
[348278309,1736431552514,-185.43329444,0.00023187,2]
[348278310,1736431552535,-32669.45228244,0.00023187,3]
[348278311,1736431552556,-4130.67054984,0.00023187,7]
[348278312,1736431552576,-4130.67054984,0.00023187,7]
[348278313,1736431552596,-4130.67054984,0.00023187,7]
[348278314,1736431552616,-4130.67054984,0.00023187,7]
[348278315,1736431552636,-4130.67054984,0.00023187,7]
[348278316,1736431552656,-4130.67054984,0.00023187,7]
[348278317,1736431552677,-4130.67054984,0.00023187,7]
[348278318,1736431552698,-4130.67054984,0.00023187,7]
[348278319,1736431552724,-4130.67054984,0.00023187,7]
[348278320,1736431552745,-4130.67054984,0.00023187,7]
[348278321,1736431552765,-4130.67054984,0.00023187,7]
[348278322,1736431552785,-4130.67054984,0.00023187,7]
[348278323,1736431552806,-3401.35020212,0.00023187,7]
[348278326,1736431558290,10507.0,0.00025,120]
[348278328,1736431631257,-533.05655671,0.00019896,2]
[348278329,1736431631281,-484.70957602,0.00019985,3]
[348278330,1736431631305,-649.29490553,0.00019985,3]
[348278331,1736431631334,-500.0,0.00019987,3]
[348278332,1736431631362,-646.15,0.00019996,3]
[348278333,1736431631388,-646.15,0.0002027,3]
[348278334,1736431631413,-646.15,0.00020544,3]
[348278335,1736431631439,-646.15,0.00020818,3]
[348278336,1736431631466,-646.15,0.00021092,3]
[348278337,1736431631492,-646.15,0.00021366,3]
[348278338,1736431631514,-500.0,0.00021512,2]
[348278339,1736431631540,-646.15,0.0002164,3]
[348278340,1736431631570,-646.15,0.00021914,3]
[348278341,1736431631591,-500.0,0.0002206,2]
[348278342,1736431631617,-300.0,0.00022187,2]
[348278343,1736431631639,-39359.0,0.00022187,2]
[348278344,1736431631663,-646.15,0.00022188,3]
[348278345,1736431631687,-646.15,0.00022462,3]
[348278346,1736431631712,-646.15,0.00022736,3]
[348278347,1736431631734,-153.0,0.00022752,2]
[348278348,1736431631758,-241.01,0.00023,2]
[348278349,1736431631783,-646.15,0.0002301,3]
[348278350,1736431631806,-168.0,0.00023053,2]
[348278351,1736431631830,-166.0,0.00023053,2]
[348278352,1736431631852,-151.0,0.00023053,2]
[348278353,1736431631874,-151.0,0.00023053,2]
[348278354,1736431631896,-151.0,0.00023053,2]
[348278355,1736431631917,-151.0,0.00023053,2]
[348278356,1736431631938,-151.0,0.00023053,2]
[348278357,1736431631959,-151.0,0.00023053,2]
[348278358,1736431631981,-151.0,0.00023053,2]
[348278359,1736431632003,-151.0,0.00023053,2]
[348278360,1736431632038,-151.0,0.00023053,2]
[348278361,1736431632063,-151.0,0.00023053,2]
[348278362,1736431632085,-151.0,0.00023053,2]
[348278363,1736431632106,-151.0,0.00023053,2]
[348278364,1736431632130,-151.0,0.00023053,2]
[348278365,1736431632152,-151.0,0.00023053,2]
[348278366,1736431632175,-151.0,0.00023053,2]
[348278367,1736431632196,-151.0,0.00023053,2]
[348278368,1736431632218,-151.0,0.00023053,2]
[348278369,1736431632241,-151.0,0.00023053,2]
[348278370,1736431632263,-151.0,0.00023053,2]
[348278371,1736431632287,-151.0,0.00023053,2]
[348278372,1736431632309,-282.0,0.00023053,2]
[348278373,1736431632334,-284.5977116,0.00023056,2]
[348278374,1736431632359,-151.0,0.00023074,2]
[348278375,1736431632383,-151.0,0.00023074,2]
[348278376,1736431632408,-151.0,0.00023074,2]
[348278377,1736431632430,-151.0,0.00023074,2]
[348278378,1736431632453,-151.0,0.00023074,2]
[348278379,1736431632475,-151.0,0.00023074,2]
[348278380,1736431632497,-151.0,0.00023074,2]
[348278381,1736431632519,-181.19,0.00023074,2]
[348278382,1736431632541,-176.85645372,0.00023087,2]
[348278383,1736431632568,-25312.73235092,0.00023087,3]
[348278384,1736431632590,-607.98956019,0.00023186,2]
[348278385,1736431632612,-214.8837635,0.00023186,2]
[348278386,1736431632635,-176.85645371,0.00023187,2]
[348278387,1736431632657,-729.32034772,0.00023187,7]
[348278388,1736431632679,-4130.67054984,0.00023187,7]
[348278389,1736431632700,-4130.67054984,0.00023187,7]
[348278390,1736431632722,-4130.67054984,0.00023187,7]
[348278391,1736431632744,-4130.67054984,0.00023187,7]
[348278392,1736431632764,-4130.67054984,0.00023187,7]
[348278393,1736431632786,-4130.67054984,0.00023187,7]
[348278394,1736431632807,-4130.67,0.00023187,7]
[348278395,1736431632834,-6196.00582476,0.00023187,7]
[348278396,1736431632855,-6196.00582476,0.00023187,7]
[348278397,1736431632877,-6196.00582476,0.00023187,7]
[348278398,1736431632899,-6196.00582476,0.00023187,7]
[348278399,1736431632921,-6196.00582476,0.00023187,7]
[348278400,1736431632945,-6196.00582476,0.00023187,7]
[348278401,1736431632967,-6196.00582476,0.00023187,7]
[348278402,1736431632990,-6196.00582476,0.00023187,7]
[348278403,1736431633012,-6196.00582476,0.00023187,7]
[348278404,1736431633033,-6196.00582476,0.00023187,7]
[348278405,1736431633055,-6196.00582476,0.00023187,7]
[348278406,1736431633081,-6196.00582476,0.00023187,7]
[348278407,1736431633103,-6196.00582476,0.00023187,7]
[348278408,1736431633126,-6196.00582476,0.00023187,7]
[348278409,1736431633150,-6196.00582476,0.00023187,7]
[348278410,1736431633174,-6196.00582476,0.00023187,7]
[348278411,1736431633198,-6196.00582476,0.00023187,7]
[348278412,1736431633222,-6196.00582476,0.00023187,7]
[348278413,1736431633245,-6196.00582476,0.00023187,7]
[348278414,1736431633272,-6196.0,0.00023187,7]
[348278415,1736431633295,-3000.0,0.00023194,2]
[348278416,1736431633319,-1648.0,0.000232,2]
[348278417,1736431633347,-153.51,0.000232,31]
[348278418,1736431633380,-153.51,0.000232,31]
[348278419,1736431633408,-153.51,0.000232,31]
[348278420,1736431633544,-153.51,0.000232,31]
[348278421,1736431633575,-153.51,0.000232,31]
[348278422,1736431633601,-153.51,0.000232,31]
[348278423,1736431633625,-153.51,0.000232,31]
[348278424,1736431633650,-153.51,0.000232,31]
[348278425,1736431633671,-500.0,0.00023255,8]
[348278426,1736431633692,-174.2970632,0.00023273,2]
[348278427,1736431633712,-500.96337351,0.00023273,2]
[348278428,1736431633735,-500.0,0.00023273,2]
[348278429,1736431633758,-500.0,0.00023273,2]
[348278430,1736431633785,-500.0,0.00023275,3]
[348278431,1736431633808,-1751.25,0.00023279,3]
[348278432,1736431633833,-460.7804004,0.0002328,7]
[348278433,1736431633857,-646.15,0.00023284,3]
[348278434,1736431633879,-79077.74771241,0.00023287,5]
[348278435,1736431633900,-13193.71949924,0.00023287,5]
[348278436,1736431633923,-392.152103,0.00023287,7]
[348278437,1736431633945,-392.152103,0.00023287,7]
[348278438,1736431633969,-392.152103,0.00023287,7]
[348278439,1736431633994,-392.152103,0.00023287,7]
[348278440,1736431634015,-392.152103,0.00023287,7]
[348278441,1736431634036,-392.152103,0.00023287,7]
[348278442,1736431634059,-392.152103,0.00023287,7]
[348278443,1736431634085,-392.152103,0.00023287,7]
[348278444,1736431634107,-392.152103,0.00023287,7]
[348278445,1736431634129,-392.152103,0.00023287,7]
[348278446,1736431634153,-392.152103,0.00023287,7]
[348278447,1736431634177,-392.152103,0.00023287,7]
[348278448,1736431634202,-392.152103,0.00023287,7]
[348278449,1736431634226,-392.152103,0.00023287,7]
[348278450,1736431634250,-392.152103,0.00023287,7]
[348278451,1736431634276,-392.152103,0.00023287,7]
[348278452,1736431634300,-392.152103,0.00023287,7]
[348278453,1736431634327,-392.152103,0.00023287,7]
[348278454,1736431634349,-392.152103,0.00023287,7]
[348278455,1736431634376,-392.152095,0.00023287,7]
[348278456,1736431634400,-151.0,0.00023287,7]
[348278457,1736431634421,-151.0,0.00023287,7]